[Event "15th Deltalift Open 2018"]
[Site "Halmstad"]
[Date "2018.05.10"]
[Round "2"]
[White "Nilsson, Patrik"]
[Black "Magelius, Olof"]
[Result "1/2-1/2"]
[ECO "B01"]
[WhiteElo "2195"]
[BlackElo "1984"]
[Annotator "NA"]
[PlyCount "59"]
[EventDate "2018.??.??"]
[EventType "swiss"]
[EventCountry "SWE"]
[SourceTitle "playchess.com"]
[Source "ChessBase"]
[SourceQuality "1"]
[TimeControl "1800+12"]

1. e4 {[%emt 0:00:05]} d5 {[%emt 0:00:06]} 2. exd5 {[%emt 0:00:20]} Qxd5 {[%emt 0:00:14]} 3. Nf3 {[%emt 0:00:10]} Nf6 {[%emt 0:00:22]} 4. d4 {[%emt 0:01:05]} Bf5 {[%emt 0:02:44]} 5. Be2 {[%emt 0:04:11]} e6 {[%emt 0:00:09]} 6. O-O {[%emt 0:00:07]} Be7 {[%emt 0:00:08]} 7. c4 {[%emt 0:00:10]} Qd8 {[%emt 0:00:26]} 8. Qb3 {[%emt 0:02:21]} b6 {[%emt 0:00:41]} 9. Nc3 {[%emt 0:00:21]} O-O {[%emt 0:00:32]} 10. Be3 {[%emt 0:00:28]} Nbd7 {[%emt 0:01:51]} 11. Rfd1 {[%emt 0:03:45]} Qc8 {[%emt 0:00:40]} 12. a3 {[%emt 0:01:40]} c5 {[%emt 0:00:52]} 13. d5 {[%emt 0:01:07]} exd5 {[%emt 0:00:05]} 14. cxd5 {[%emt 0:00:11]} Ne4 {[%emt 0:00:09]} 15. Nxe4 {[%emt 0:02:15]} Bxe4 {[%emt 0:00:02]} 16. Rac1 {[%emt 0:01:34]} Bf6 {[%emt 0:00:49]} 17. Ng5 {[%emt 0:02:28]} Bg6 {[%emt 0:00:23]} 18. Bd3 {[%emt 0:00:04]} Ne5 {[%emt 0:02:31]} 19. Bxg6 {[%emt 0:00:12]} hxg6 {[%emt 0:00:16]} 20. Ne4 {[%emt 0:01:35]} Qg4 {[%emt 0:01:04]} 21. Nxf6+ {[%emt 0:00:45]} gxf6 {[%emt 0:00:01]} 22. h3 {[%emt 0:00:45]} Qh4 {[%emt 0:01:36]} 23. f4 {[%emt 0:04:27]} c4 {[%emt 0:01:14]} 24. Qa2 {[%emt 0:02:15]} Nf3+ {[%emt 0:03:03]} 25. Kf1 {[%emt 0:07:44]} Nh2+ {[%emt 0:00:17]} 26. Kg1 {[%emt 0:00:32]} Nf3+ {[%emt 0:00:02]} 27. Kf1 {[%emt 0:00:56]} Qg3 {[%emt 0:01:31]} 28. Bf2 {[%emt 0:00:40]} Nh2+ {[%emt 0:00:05]} 29. Kg1 {[%emt 0:00:02]} Nf3+ {[%emt 0:00:01]} 30. Kf1 {[%emt 0:00:01]} 1/2-1/2

[Event "15th Deltalift Open 2018"]
[Site "Halmstad"]
[Date "2018.05.10"]
[Round "2"]
[White "Ivarsson, Torbjorn"]
[Black "Nilsson, Eskil"]
[Result "1/2-1/2"]
[ECO "A45"]
[WhiteElo "2153"]
[BlackElo "1962"]
[Annotator "NA"]
[PlyCount "141"]
[EventDate "2018.??.??"]
[EventType "swiss"]
[EventCountry "SWE"]
[SourceTitle "playchess.com"]
[Source "ChessBase"]
[SourceQuality "1"]
[TimeControl "1800+12"]

1. d4 {[%emt 0:00:45]} Nf6 {[%emt 0:00:28]} 2. Bf4 {[%emt 0:00:31]} g6 {[%emt 0:00:34]} 3. Nc3 {[%emt 0:01:20]} d5 {[%emt 0:05:35]} 4. e3 {[%emt 0:00:09]} Bg7 {[%emt 0:00:21]} 5. h4 {[%emt 0:00:24]} h5 {[%emt 0:00:52]} 6. Nf3 {[%emt 0:00:11]} Bg4 {[%emt 0:00:16]} 7. Qd2 {[%emt 0:00:25]} Bxf3 {[%emt 0:02:47]} 8. gxf3 {[%emt 0:00:08]} c6 {[%emt 0:00:33]} 9. O-O-O {[%emt 0:00:36]} a5 {[%emt 0:01:35]} 10. e4 {[%emt 0:00:28]} e6 {[%emt 0:02:53]} 11. Bg5 {[%emt 0:03:16]} Qc7 {[%emt 0:01:13]} 12. a4 {[%emt 0:01:02]} Nbd7 {[%emt 0:03:31]} 13. Kb1 {[%emt 0:03:15]} Ng8 {[%emt 0:04:05]} 14. Be2 {[%emt 0:01:29]} Bf6 {[%emt 0:00:30]} 15. Rhe1 {[%emt 0:02:36]} O-O-O {[%emt 0:01:19]} 16. Bf4 {[%emt 0:04:47]} Qb6 {[%emt 0:00:32]} 17. Bg3 {[%emt 0:00:09]} Ne7 {[%emt 0:02:31]} 18. Bf1 {[%emt 0:00:18]} dxe4 {[%emt 0:06:44]} 19. fxe4 {[%emt 0:01:13]} Bg7 {[%emt 0:01:07]} 20. Qf4 {[%emt 0:02:29]} Rhf8 {[%emt 0:00:28]} 21. Rd3 {[%emt 0:01:28]} e5 {[%emt 0:01:17]} 22. dxe5 {[%emt 0:01:49]} Bxe5 {[%emt 0:00:09]} 23. Qf3 {[%emt 0:00:56]} f6 {[%emt 0:00:46]} 24. Bh3 {[%emt 0:00:47]} Bxg3 {[%emt 0:00:42]} 25. Qxg3 {[%emt 0:00:48]} Qc7 {[%emt 0:00:30]} 26. Qe3 {[%emt 0:01:35]} Kb8 {[%emt 0:00:07]} 27. Bxd7 {[%emt 0:00:51]} Rxd7 {[%emt 0:00:02]} 28. Rxd7 {[%emt 0:00:09]} Qxd7 {[%emt 0:00:02]} 29. Rd1 {[%emt 0:01:59]} Qc7 {[%emt 0:00:01]} 30. Qd4 {[%emt 0:00:14]} g5 {[%emt 0:00:37]} 31. hxg5 {[%emt 0:00:13]} fxg5 {[%emt 0:00:01]} 32. Qg7 {[%emt 0:00:17]} Rg8 {[%emt 0:00:05]} 33. Qf7 {[%emt 0:00:01]} h4 {[%emt 0:00:35]} 34. Ne2 {[%emt 0:00:22]} Rd8 {[%emt 0:00:22]} 35. Rg1 {[%emt 0:00:26]} Rd2 {[%emt 0:00:36]} 36. Nc3 {[%emt 0:00:17]} Qe5 {[%emt 0:00:12]} 37. Kc1 {[%emt 0:00:06]} Rd8 {[%emt 0:00:28]} 38. Qc4 {[%emt 0:00:18]} h3 {[%emt 0:00:12]} 39. Qe2 {[%emt 0:00:02]} Qf4+ {[%emt 0:00:19]} 40. Kb1 {[%emt 0:00:06]} h2 {[%emt 0:00:04]} 41. Rh1 {[%emt 0:00:07]} g4 {[%emt 0:00:17]} 42. e5 {[%emt 0:00:19]} Rd2 {[%emt 0:00:33]} 43. Qe4 {[%emt 0:00:02]} Qxe4 {[%emt 0:00:37]} 44. Nxe4 {[%emt 0:00:01]} Re2 {[%emt 0:00:09]} 45. Nf6 {[%emt 0:00:06]} g3 {[%emt 0:00:44]} 46. fxg3 {[%emt 0:00:02]} Rg2 {[%emt 0:00:01]} 47. Ka2 {[%emt 0:00:05]} Kc7 {[%emt 0:01:15]} 48. Ng4 {[%emt 0:00:02]} Nf5 {[%emt 0:00:25]} 49. Rxh2 {[%emt 0:00:14]} Rxh2 {[%emt 0:00:11]} 50. Nxh2 {[%emt 0:00:03]} Nxg3 {[%emt 0:00:02]} 51. Kb3 {[%emt 0:00:17]} Ne4 {[%emt 0:00:18]} 52. Kc4 {[%emt 0:00:08]} b6 {[%emt 0:00:16]} 53. Nf3 {[%emt 0:00:08]} Kd7 {[%emt 0:00:05]} 54. Nd4 {[%emt 0:00:10]} Nc5 {[%emt 0:00:32]} 55. b3 {[%emt 0:00:11]} Ne4 {[%emt 0:00:26]} 56. b4 {[%emt 0:00:41]} axb4 {[%emt 0:00:24]} 57. e6+ {[%emt 0:00:09]} Kd6 {[%emt 0:00:26]} 58. e7 {[%emt 0:00:23]} Kxe7 {[%emt 0:00:06]} 59. Nxc6+ {[%emt 0:00:02]} Kd6 {[%emt 0:00:07]} 60. Nxb4 {[%emt 0:00:05]} Nc5 {[%emt 0:00:10]} 61. Kb5 {[%emt 0:00:06]} Kc7 {[%emt 0:00:24]} 62. Nd5+ {[%emt 0:00:04]} Kb7 {[%emt 0:00:51]} 63. Nxb6 {[%emt 0:00:05]} Ne6 {[%emt 0:00:12]} 64. c3 {[%emt 0:00:42]} Nc7+ {[%emt 0:00:03]} 65. Ka5 {[%emt 0:00:13]} Ne6 {[%emt 0:00:02]} 66. Nd7 {[%emt 0:00:37]} Kc6 {[%emt 0:00:08]} 67. Nf6 {[%emt 0:00:14]} Nc5 {[%emt 0:00:10]} 68. Kb4 {[%emt 0:00:09]} Na6+ {[%emt 0:00:05]} 69. Kc4 {[%emt 0:00:03]} Nc5 {[%emt 0:00:09]} 70. a5 {[%emt 0:00:19]} Na4 {[%emt 0:00:41]} 71. Ne4 {[%emt 0:00:20]} 1/2-1/2

[Event "15th Deltalift Open 2018"]
[Site "Halmstad"]
[Date "2018.05.10"]
[Round "2"]
[White "Mejvik, Jacob"]
[Black "Sjodahl, Pontus"]
[Result "0-1"]
[ECO "E04"]
[WhiteElo "2063"]
[BlackElo "2404"]
[Annotator "ChessBase"]
[PlyCount "92"]
[EventDate "2018.??.??"]
[EventType "swiss"]
[EventCountry "SWE"]
[SourceTitle "playchess.com"]
[Source "ChessBase"]
[SourceQuality "1"]
[TimeControl "1800+12"]

1. Nf3 {[%emt 0:00:07]} d5 {[%emt 0:01:06]} 2. d4 {[%emt 0:00:07]} Nf6 {[%emt 0:00:15]} 3. c4 {[%emt 0:00:10]} e6 {[%emt 0:00:18]} 4. g3 {[%emt 0:00:06]} dxc4 {[%emt 0:03:17]} 5. Bg2 {[%emt 0:00:08]} Nc6 {[%emt 0:00:53]} 6. Qa4 {[%emt 0:00:56]} Bb4+ {[%emt 0:01:51]} 7. Bd2 {[%emt 0:03:17]} Nd5 {[%emt 0:00:03]} 8. Qb5 {[%emt 0:08:49]} Bxd2+ {[%emt 0:00:20]} 9. Nfxd2 {[%emt 0:00:09]} O-O {[%emt 0:02:11]} 10. Qxc4 {[%emt 0:02:51]} Nb6 {[%emt 0:00:43]} 11. Qc1 {[%emt 0:03:19]} Nxd4 {[%emt 0:00:20]} 12. Nc3 {[%emt 0:00:01]} Nd5 {[%emt 0:01:11]} 13. e3 {[%emt 0:00:54]} Nf5 {[%emt 0:02:38]} 14. O-O {[%emt 0:00:30]} c6 {[%emt 0:00:17]} 15. Na4 {[%emt 0:00:37]} Nd6 {[%emt 0:00:49]} 16. e4 {[%emt 0:01:01]} Nb6 {[%emt 0:00:08]} 17. Nc5 {[%emt 0:00:03]} e5 {[%emt 0:03:23]} 18. Rd1 {[%emt 0:00:34]} Qe7 {[%emt 0:00:07]} 19. a4 {[%emt 0:00:24]} a5 {[%emt 0:00:06]} 20. Qc3 {[%emt 0:00:21]} Re8 {[%emt 0:03:58]} 21. b3 {[%emt 0:00:20]} Bg4 {[%emt 0:01:24]} 22. f3 {[%emt 0:00:03]} Bh5 {[%emt 0:00:20]} 23. g4 {[%emt 0:00:08]} Bg6 {[%emt 0:00:03]} 24. Nf1 {[%emt 0:00:03]} Nbc8 {[%emt 0:00:36]} 25. Nd3 {[%emt 0:00:44]} f6 {[%emt 0:00:26]} 26. Ne3 {[%emt 0:02:26]} Bf7 {[%emt 0:00:08]} 27. Rac1 {[%emt 0:00:29]} Kh8 {[%emt 0:01:22]} 28. Kf2 {[%emt 0:00:41]} Bg8 {[%emt 0:00:18]} 29. Bf1 {[%emt 0:02:58]} Qf7 {[%emt 0:00:26]} 30. Rb1 {[%emt 0:00:10]} Qg6 {[%emt 0:00:18]} 31. Nf5 {[%emt 0:03:03]} Nxf5 {[%emt 0:00:41]} 32. exf5 {[%emt 0:00:02]} Qh6 {[%emt 0:00:48]} 33. Nc5 {[%emt 0:00:32]} Qxh2+ {[%emt 0:01:01]} 34. Bg2 {[%emt 0:00:01]} Qf4 {[%emt 0:00:28]} 35. Rd7 {[%emt 0:00:31]} Nb6 {[%emt 0:00:29]} 36. Nd3 {[%emt 0:00:32]} Qg5 {[%emt 0:00:24]} 37. Rxb7 {[%emt 0:00:47]} Nd5 {[%emt 0:00:05]} 38. Qc1 {[%emt 0:00:16]} Qh4+ {[%emt 0:00:18]} 39. Kg1 {[%emt 0:00:02]} Rad8 {[%emt 0:04:08]} 40. Rb2 {[%emt 0:01:15]} Nf4 {[%emt 0:00:57]} 41. Nc5 {[%emt 0:01:02]} Rd5 {[%emt 0:01:57]} 42. Rd2 {[%emt 0:00:16]} Rxc5 {[%emt 0:01:00]} 43. Qxc5 {[%emt 0:00:16]} Qe1+ {[%emt 0:00:05]} 44. Bf1 {[%emt 0:00:05]} Qxd2 {[%emt 0:00:13]} 45. Qxc6 {[%emt 0:00:27]} Qe3+ {[%emt 0:01:44]} 46. Kh2 {[%emt 0:00:08]} Qf2+ {[%emt 0:00:07]} 0-1

[Event "15th Deltalift Open 2018"]
[Site "Halmstad"]
[Date "2018.05.10"]
[Round "2"]
[White "Stray, Gunnar"]
[Black "Akesson, Ralf"]
[Result "0-1"]
[ECO "A43"]
[WhiteElo "2051"]
[BlackElo "2392"]
[Annotator "ChessBase"]
[PlyCount "100"]
[EventDate "2018.??.??"]
[EventType "swiss"]
[EventCountry "SWE"]
[SourceTitle "playchess.com"]
[Source "ChessBase"]
[SourceQuality "1"]
[TimeControl "1800+12"]

1. d4 {[%emt 0:00:16]} Nf6 {[%emt 0:00:16]} 2. Nf3 {[%emt 0:00:09]} g6 {[%emt 0:00:47]} 3. g3 {[%emt 0:00:06]} c5 {[%emt 0:01:54]} 4. d5 {[%emt 0:00:40]} d6 {[%emt 0:01:48]} 5. Bg2 {[%emt 0:00:12]} b5 {[%emt 0:00:59]} 6. O-O {[%emt 0:00:11]} Nbd7 {[%emt 0:01:55]} 7. Re1 {[%emt 0:00:25]} Bg7 {[%emt 0:00:25]} 8. e4 {[%emt 0:00:03]} O-O {[%emt 0:00:04]} 9. a4 {[%emt 0:00:05]} b4 {[%emt 0:00:16]} 10. c4 {[%emt 0:02:13]} Ne8 {[%emt 0:01:50]} 11. Nbd2 {[%emt 0:00:42]} a5 {[%emt 0:00:18]} 12. Rb1 {[%emt 0:00:14]} Ra7 {[%emt 0:00:09]} 13. b3 e5 {[%emt 0:00:13]} 14. Nf1 {[%emt 0:01:26]} h6 {[%emt 0:00:29]} 15. Qc2 {[%emt 0:06:22]} Kh7 {[%emt 0:00:53]} 16. h4 {[%emt 0:01:24]} Ndf6 {[%emt 0:00:21]} 17. N3h2 {[%emt 0:00:30]} Nh5 {[%emt 0:00:09]} 18. Bf3 {[%emt 0:00:19]} f5 {[%emt 0:00:27]} 19. exf5 {[%emt 0:00:45]} Bxf5 {[%emt 0:00:05]} 20. Be4 {[%emt 0:00:02]} Raf7 {[%emt 0:01:00]} 21. Re2 {[%emt 0:03:07]} Qd7 {[%emt 0:03:41]} 22. Ne3 Bxe4 {[%emt 0:00:19]} 23. Qxe4 {[%emt 0:00:02]} Nf4 {[%emt 0:02:38]} 24. gxf4 {[%emt 0:01:07]} Rxf4 {[%emt 0:00:29]} 25. Qg2 {[%emt 0:00:40]} Nf6 {[%emt 0:00:16]} 26. Nef1 {[%emt 0:00:26]} Rxh4 {[%emt 0:00:07]} 27. Ng3 {[%emt 0:05:21]} Nh5 {[%emt 0:00:31]} 28. Ne4 {[%emt 0:02:56]} Rff4 {[%emt 0:01:17]} 29. f3 {[%emt 0:01:13]} Rf8 {[%emt 0:01:31]} 30. Bd2 {[%emt 0:00:47]} Nf4 {[%emt 0:00:19]} 31. Bxf4 {[%emt 0:00:09]} exf4 {[%emt 0:00:04]} 32. Kf1 {[%emt 0:01:13]} Bd4 {[%emt 0:01:46]} 33. Ke1 {[%emt 0:00:19]} Rf5 {[%emt 0:00:57]} 34. Kd2 {[%emt 0:00:16]} Rfh5 {[%emt 0:00:32]} 35. Rg1 {[%emt 0:00:06]} Qg7 {[%emt 0:00:43]} 36. Ng4 {[%emt 0:00:17]} Rf5 {[%emt 0:01:35]} 37. Rh1 {[%emt 0:00:08]} Rxh1 {[%emt 0:00:55]} 38. Qxh1 {[%emt 0:00:01]} h5 {[%emt 0:00:45]} 39. Nxd6 Be3+ {[%emt 0:00:23]} 40. Nxe3 {[%emt 0:00:16]} Qc3+ {[%emt 0:01:22]} 41. Kd1 {[%emt 0:00:05]} Qa1+ {[%emt 0:00:08]} 42. Kc2 {[%emt 0:00:11]} Qxh1 {[%emt 0:00:10]} 43. Ndxf5 {[%emt 0:00:41]} Qxf3 {[%emt 0:00:32]} 44. Re1 {[%emt 0:00:12]} gxf5 {[%emt 0:00:26]} 45. Nd1 {[%emt 0:00:49]} Qg2+ {[%emt 0:00:15]} 46. Kd3 {[%emt 0:00:16]} Qg3+ {[%emt 0:00:30]} 47. Kd2 {[%emt 0:00:07]} f3 {[%emt 0:00:02]} 48. Rf1 {[%emt 0:00:13]} Qf4+ {[%emt 0:00:17]} 49. Ke1 {[%emt 0:01:01]} Qe4+ {[%emt 0:00:06]} 50. Kf2 {[%emt 0:00:22]} Qe2+ {[%emt 0:00:03]} 0-1

[Event "15th Deltalift Open 2018"]
[Site "Halmstad"]
[Date "2018.05.10"]
[Round "2"]
[White "Karlsson, Jorgen"]
[Black "Arman, Deniz"]
[Result "0-1"]
[ECO "B07"]
[WhiteElo "2029"]
[BlackElo "2367"]
[Annotator "NA"]
[PlyCount "64"]
[EventDate "2018.??.??"]
[EventType "swiss"]
[EventCountry "SWE"]
[SourceTitle "playchess.com"]
[Source "ChessBase"]
[SourceQuality "1"]
[TimeControl "1800+12"]

1. d4 {[%emt 0:00:10]} Nf6 {[%emt 0:00:17]} 2. Bf4 {[%emt 0:00:10]} g6 {[%emt 0:00:10]} 3. Nc3 {[%emt 0:00:12]} Bg7 {[%emt 0:00:10]} 4. e4 {[%emt 0:01:49]} d6 {[%emt 0:00:06]} 5. Qd2 {[%emt 0:00:49]} a6 {[%emt 0:00:09]} 6. Nf3 {[%emt 0:05:13]} b5 {[%emt 0:00:39]} 7. a3 {[%emt 0:00:25]} Bb7 {[%emt 0:00:25]} 8. Bd3 {[%emt 0:00:08]} c5 {[%emt 0:00:22]} 9. d5 {[%emt 0:00:42]} O-O {[%emt 0:05:55]} 10. O-O {[%emt 0:01:49]} Re8 {[%emt 0:00:38]} 11. Rfe1 {[%emt 0:00:15]} Nbd7 {[%emt 0:00:12]} 12. h3 Nb6 {[%emt 0:03:01]} 13. Rad1 {[%emt 0:00:14]} e6 {[%emt 0:01:00]} 14. dxe6 {[%emt 0:00:24]} Rxe6 {[%emt 0:00:01]} 15. Ng5 {[%emt 0:02:33]} Re7 {[%emt 0:02:16]} 16. e5 dxe5 17. Bxe5 {[%emt 0:00:15]} c4 {[%emt 0:00:50]} 18. Bxg6 {[%emt 0:01:31]} Qxd2 {[%emt 0:00:11]} 19. Bxf7+ {[%emt 0:00:03]} Rxf7 {[%emt 0:00:10]} 20. Rxd2 {[%emt 0:00:01]} Re7 {[%emt 0:00:24]} 21. f4 {[%emt 0:01:40]} Nfd5 {[%emt 0:02:40]} 22. Nge4 {[%emt 0:03:39]} Nxc3 {[%emt 0:00:34]} 23. Nxc3 {[%emt 0:00:04]} Rae8 {[%emt 0:00:38]} 24. Rde2 {[%emt 0:00:02]} Bxe5 {[%emt 0:00:39]} 25. fxe5 {[%emt 0:00:54]} Nd7 {[%emt 0:00:01]} 26. Rd1 {[%emt 0:02:28]} Nxe5 {[%emt 0:00:16]} 27. Red2 {[%emt 0:00:14]} Rg7 {[%emt 0:00:11]} 28. Kh2 {[%emt 0:00:06]} Kh8 {[%emt 0:01:14]} 29. Nd5 {[%emt 0:00:03]} Reg8 {[%emt 0:01:04]} 30. Nf4 {[%emt 0:00:06]} Rf7 {[%emt 0:00:45]} 31. Ne6 {[%emt 0:00:33]} Rf6 {[%emt 0:01:10]} 32. Nc5 {[%emt 0:00:02]} Bc6 {[%emt 0:00:02]} 0-1

[Event "15th Deltalift Open 2018"]
[Site "Halmstad"]
[Date "2018.05.10"]
[Round "2"]
[White "Andersson, Lars"]
[Black "Malmstig, Erik"]
[Result "0-1"]
[ECO "A03"]
[WhiteElo "2028"]
[BlackElo "2339"]
[Annotator "NA"]
[PlyCount "109"]
[EventDate "2018.??.??"]
[EventType "swiss"]
[EventCountry "SWE"]
[SourceTitle "playchess.com"]
[Source "ChessBase"]
[SourceQuality "1"]
[TimeControl "1800+12"]

1. f4 {[%emt 0:00:09]} d5 {[%emt 0:01:18]} 2. Nf3 {[%emt 0:00:05]} Nc6 {[%emt 0:01:18]} 3. e3 {[%emt 0:00:09]} a6 {[%emt 0:00:47]} 4. b3 {[%emt 0:00:19]} f6 {[%emt 0:00:55]} 5. Bb2 {[%emt 0:01:47]} Bg4 {[%emt 0:00:34]} 6. c4 {[%emt 0:02:51]} e6 {[%emt 0:02:10]} 7. h3 {[%emt 0:00:39]} Bh5 {[%emt 0:00:26]} 8. Be2 {[%emt 0:04:40]} Nge7 {[%emt 0:01:40]} 9. O-O {[%emt 0:00:48]} Bf7 {[%emt 0:00:26]} 10. g4 {[%emt 0:00:19]} h5 {[%emt 0:01:38]} 11. g5 {[%emt 0:00:07]} Nf5 {[%emt 0:00:20]} 12. Bd3 {[%emt 0:03:46]} Ng3 {[%emt 0:03:25]} 13. Rf2 {[%emt 0:00:06]} Nb4 {[%emt 0:00:23]} 14. Bf1 {[%emt 0:03:49]} Nxf1 {[%emt 0:01:16]} 15. Rxf1 {[%emt 0:00:07]} Nd3 {[%emt 0:02:32]} 16. Bc3 {[%emt 0:03:17]} Be7 {[%emt 0:00:44]} 17. Qe2 {[%emt 0:01:32]} dxc4 {[%emt 0:03:14]} 18. bxc4 {[%emt 0:00:18]} Qd7 {[%emt 0:01:27]} 19. Bd4 {[%emt 0:03:00]} Nb4 {[%emt 0:00:31]} 20. a3 {[%emt 0:01:18]} Nc6 {[%emt 0:02:05]} 21. Bc3 {[%emt 0:01:06]} e5 {[%emt 0:01:46]} 22. d4 {[%emt 0:04:07]} Qxh3 {[%emt 0:04:34]} 23. fxe5 {[%emt 0:00:16]} fxg5 {[%emt 0:00:30]} 24. d5 {[%emt 0:00:23]} Na7 {[%emt 0:00:15]} 25. Qg2 {[%emt 0:00:31]} Qxg2+ {[%emt 0:00:30]} 26. Kxg2 {[%emt 0:00:01]} Bg6 {[%emt 0:00:04]} 27. Nbd2 {[%emt 0:00:16]} O-O {[%emt 0:00:23]} 28. Nd4 {[%emt 0:00:13]} Rxf1 {[%emt 0:00:25]} 29. Rxf1 {[%emt 0:00:01]} Bxa3 {[%emt 0:00:10]} 30. Ne6 {[%emt 0:00:14]} g4 {[%emt 0:00:44]} 31. Nxc7 {[%emt 0:00:26]} Rc8 {[%emt 0:00:03]} 32. Ne6 {[%emt 0:02:23]} h4 {[%emt 0:00:19]} 33. d6 {[%emt 0:00:23]} Nc6 {[%emt 0:00:27]} 34. d7 {[%emt 0:00:10]} Ra8 {[%emt 0:00:05]} 35. Nc7 {[%emt 0:00:19] [#]} Rd8 {[%emt 0:00:20]} (35... Rf8 $1 $17 36. Ra1 Be7) 36. e6 {[%emt 0:00:06]} Bd6 $2 {[%emt 0:00:12]} (36... Rf8 $1 $15 {keeps the upper hand.} 37. Nd5 h3+ 38. Kg3 Rxf1 39. Nxf1 Kf8 40. Kxg4 Bd3) 37. Nd5 {[%emt 0:00:34]} h3+ {[%emt 0:00:09]} 38. Kg1 {[%emt 0:00:04]} g3 {[%emt 0:00:14]} 39. Bd4 {[%emt 0:00:25]} b5 {[%emt 0:03:00]} 40. Bb6 {[%emt 0:00:12]} Ra8 {[%emt 0:00:37]} 41. c5 {[%emt 0:00:07]} Be5 $2 {[%emt 0:00:48]} (41... Bf8 42. Rf3 a5) 42. e7 {[%emt 0:00:21]} Bf7 {[%emt 0:01:01]} 43. Nc7 $2 {[%emt 0:00:43]} (43. Ne4 h2+ 44. Kg2) 43... Bxc7 {[%emt 0:01:25]} 44. Bxc7 {[%emt 0:00:04]} Nxe7 {[%emt 0:00:02]} 45. d8=Q+ {[%emt 0:00:11]} Rxd8 {[%emt 0:00:05]} 46. Bxd8 {[%emt 0:00:02]} Nc6 {[%emt 0:00:34]} 47. Bc7 {[%emt 0:00:05]} g2 {[%emt 0:00:17]} 48. Rf3 {[%emt 0:00:55]} Be6 $18 {[%emt 0:00:18]} (48... a5 $142 49. Rxh3 a4 50. Kxg2 b4) 49. Kh2 {[%emt 0:00:38]} b4 {[%emt 0:00:08]} 50. Ne4 {[%emt 0:00:22]} b3 {[%emt 0:00:23]} 51. Nc3 {[%emt 0:00:07]} a5 {[%emt 0:00:29]} 52. Rf2 {[%emt 0:00:04]} Nb4 {[%emt 0:00:37]} 53. Bxa5 {[%emt 0:00:23]} Nd3 {[%emt 0:00:02]} 54. Rd2 {[%emt 0:00:22]} Ne5 {[%emt 0:00:08]} 55. Rf2 {[%emt 0:00:16]} 0-1

[Event "15th Deltalift Open 2018"]
[Site "Halmstad"]
[Date "2018.05.10"]
[Round "2"]
[White "Goransson, Martin"]
[Black "Rydstrom, Tom"]
[Result "0-1"]
[ECO "A27"]
[WhiteElo "2025"]
[BlackElo "2324"]
[Annotator "NA"]
[PlyCount "86"]
[EventDate "2018.??.??"]
[EventType "swiss"]
[EventCountry "SWE"]
[SourceTitle "playchess.com"]
[Source "ChessBase"]
[SourceQuality "1"]
[TimeControl "1800+12"]

1. c4 {[%emt 0:00:05]} e5 {[%emt 0:01:34]} 2. g3 {[%emt 0:00:23]} Nc6 {[%emt 0:01:41]} 3. Nc3 {[%emt 0:00:20]} f5 {[%emt 0:05:07]} 4. Nf3 {[%emt 0:00:03]} Nf6 {[%emt 0:00:02] A27: English Opening: Three Knights Variation} (4... d6 5. d4 e4 6. d5 Ne5 7. Nxe5 dxe5 8. g4 g6 9. gxf5 gxf5 10. Rg1 Nf6 11. Bg5 Be7 12. e3 Rg8 {1-0 (27) Aronian,L (2793)-Ivanchuk,V (2738) Leuven 2017}) 5. d4 {[%emt 0:00:12]} e4 {[%emt 0:00:10]} 6. Nh4 {[%emt 0:00:06]} g6 {[%emt 0:00:53]} 7. Bg5 {[%emt 0:01:43]} Be7 {[%emt 0:01:51]} 8. e3 {[%emt 0:08:49]} Kf7 {[%emt 0:01:48]} 9. Be2 $146 {[%emt 0:00:58]} ({Predecessor:} 9. Ng2 h6 10. Bxf6 Bxf6 11. g4 d6 12. Nf4 {0-1 (25) Doyle,H (1920)-Murray,D (2141) Bunratty 2013}) 9... h6 {[%emt 0:00:20]} 10. Bxf6 {[%emt 0:00:09]} Bxf6 {[%emt 0:00:02]} 11. Ng2 {[%emt 0:00:02]} g5 {[%emt 0:02:47]} 12. f3 {[%emt 0:03:32]} exf3 {[%emt 0:04:00]} 13. Bxf3 {[%emt 0:00:02]} d6 {[%emt 0:00:24]} 14. O-O {[%emt 0:01:55]} Rf8 {[%emt 0:05:08]} 15. Be2 {[%emt 0:01:50]} Kg8 {[%emt 0:00:01]} 16. Bd3 {[%emt 0:00:10]} Bg7 {[%emt 0:00:02]} 17. Nd5 {[%emt 0:01:07]} Ne7 {[%emt 0:02:55]} 18. Qc2 {[%emt 0:00:13]} c5 {[%emt 0:00:46]} 19. dxc5 {[%emt 0:00:53]} dxc5 {[%emt 0:00:08]} 20. Rad1 {[%emt 0:00:12]} Kh8 {[%emt 0:02:21]} 21. Nxe7 {[%emt 0:04:05]} Qxe7 {[%emt 0:00:02]} 22. Bxf5 {[%emt 0:00:08]} Bxf5 {[%emt 0:03:44]} 23. Rxf5 {[%emt 0:00:02]} Rxf5 {[%emt 0:00:20]} 24. Qxf5 {[%emt 0:00:02]} Rf8 {[%emt 0:00:01]} 25. Qd5 {[%emt 0:03:00]} Bxb2 {[%emt 0:00:55]} 26. Rb1 {[%emt 0:00:19]} Qf6 {[%emt 0:00:42]} 27. Qd2 {[%emt 0:00:02]} Bc3 {[%emt 0:00:03]} 28. Qe2 {[%emt 0:00:23]} b6 {[%emt 0:00:04]} 29. Rf1 {[%emt 0:00:31]} Qe7 {[%emt 0:01:04]} 30. h4 {[%emt 0:01:25]} Bg7 {[%emt 0:00:17]} 31. hxg5 {[%emt 0:00:22]} Qxg5 {[%emt 0:00:07]} 32. Rxf8+ {[%emt 0:00:25]} Bxf8 {[%emt 0:00:02]} 33. Qf3 {[%emt 0:00:06]} Qg7 {[%emt 0:02:33]} 34. Nf4 {[%emt 0:00:16]} Qa1+ {[%emt 0:01:00]} 35. Kg2 {[%emt 0:00:02]} Qxa2+ {[%emt 0:00:14]} 36. Kh3 {[%emt 0:00:01]} Qc2 {[%emt 0:00:06]} 37. Ne6 {[%emt 0:01:47]} Bg7 $1 {[%emt 0:00:42]} 38. Nxg7 {[%emt 0:01:07]} Kxg7 {[%emt 0:00:04]} 39. Qg4+ {[%emt 0:00:01]} Qg6 {[%emt 0:00:28]} 40. Qd7+ {[%emt 0:00:10]} Qf7 {[%emt 0:00:02]} 41. Qg4+ {[%emt 0:00:02]} Kf8 {[%emt 0:01:20]} (41... Kh8) 42. Qc8+ {[%emt 0:00:14]} Qe8 {[%emt 0:00:15]} 43. Qf5+ {[%emt 0:00:10]} Qf7 $11 {[%emt 0:00:06]} 0-1